bitfinex/quotes_SOLUSD_20250907
["timestamp","ask_amount","ask_price","bid_price","bid_amount"]
[1757213128801,1e-08,202.38,202.37,70.29433549]
[1757213129098,1e-08,202.38,202.37,70.98433549]
[1757213129401,1e-08,202.38,202.37,72.96135266]
[1757213130198,1e-08,202.38,202.37,34.55135266]
[1757213130486,1e-08,202.38,202.37,72.96135266]
[1757213130776,1e-08,202.38,202.37,77.21279654]
[1757213131013,1e-08,202.38,202.37,39.49279654]
[1757213131196,1e-08,202.38,202.37,77.21279654]
[1757213131593,0.40000001,202.38,202.37,13.49279654]
[1757213131783,0.40000001,202.38,202.37,51.21279654]
[1757213133478,0.40000001,202.38,202.37,8.55135266]
[1757213137198,1e-08,202.38,202.37,8.55135266]
[1757213139589,1e-08,202.38,202.37,8.54804606]
[1757213143787,1e-08,202.38,202.37,13.48948994]
[1757213145818,1e-08,202.38,202.37,9.79714338]
[1757213146016,1e-08,202.38,202.37,13.49111914]
[1757213146201,1e-08,202.38,202.37,8.54967526]
[1757213146397,4.35765976,202.38,202.37,8.54967526]
[1757213146631,4.35765976,202.38,202.37,6.57265809]
[1757213147594,0.40000001,202.38,202.37,6.57265809]
[1757213148113,0.40000001,202.38,202.37,6.69265809]
[1757213148413,4.35765976,202.38,202.37,6.69265809]
[1757213148712,9.29885948,202.38,202.37,6.69265809]
[1757213149029,9.29885948,202.38,202.37,3.81397576]
[1757213149030,22.89445349,202.38,202.37,3.81397576]
[1757213149314,4.35765976,202.38,202.37,6.69275815]
[1757213150807,0.40000001,202.38,202.37,6.69275815]
[1757213151010,4.35765976,202.38,202.37,6.69275815]
[1757213151398,0.40000001,202.38,202.37,6.69275815]
[1757213151613,2.93235985,202.38,202.37,6.69275815]
[1757213152304,2.93235985,202.38,202.37,6.69270986]
[1757213154417,2.53235985,202.38,202.37,6.69270986]
[1757213154889,2.53235985,202.38,202.37,2.9987341]
[1757213155097,2.53235985,202.38,202.37,6.69519806]
[1757213155492,2.93235985,202.38,202.37,6.69519806]
[1757213156029,2.53235985,202.38,202.37,6.69519806]
[1757213157710,2.53235985,202.38,202.37,6.69516293]
[1757213158027,1e-08,202.38,202.37,6.69516293]
[1757213158322,1e-08,202.38,202.37,12.34660681]
[1757213158496,1e-08,202.38,202.37,27.17936744]
[1757213159918,1e-08,202.38,202.37,27.17929925]
[1757213166718,1e-08,202.38,202.37,21.52785537]
[1757213167120,1e-08,202.38,202.37,22.23785537]
[1757213170936,1e-08,202.38,202.37,27.17929925]
[1757213178124,1e-08,202.38,202.37,27.1826945]
[1757213192546,1e-08,202.38,202.37,21.53125062]
[1757213192748,1e-08,202.38,202.37,21.53164148]
[1757213192949,0.40000001,202.38,202.37,21.53164148]
[1757213193570,1e-08,202.38,202.37,21.53164148]
[1757213193939,0.40000001,202.38,202.37,6.69888085]
[1757213195135,1e-08,202.38,202.37,6.69888085]
[1757213195534,0.40000001,202.38,202.37,6.69888085]
[1757213195736,1e-08,202.38,202.37,6.69888085]
[1757213197838,1e-08,202.38,202.37,11.63974386]
[1757213199059,2.93235985,202.38,202.37,11.63974386]
[1757213199253,16.52795386,202.38,202.37,3.82021494]
[1757213199564,21.46915358,202.38,202.37,3.82021494]
[1757213200246,63.02936852,202.38,202.37,3.82021494]
[1757213200438,59.20915358,202.38,202.37,3.82021494]
[1757213201362,59.20915358,202.38,202.37,0.12]
[1757213201855,21.46915358,202.38,202.37,0.12]
[1757213202157,59.20915358,202.38,202.37,0.12]
[1757213205033,56.67679374,202.38,202.37,0.12]
[1757213205237,59.20915358,202.38,202.37,0.12]
[1757213208245,58.80915358,202.38,202.37,0.12]
[1757213208760,59.20915358,202.38,202.37,0.12]
[1757213209261,58.80915358,202.38,202.37,0.12]
[1757213209639,1e-08,202.38,202.37,0.12]
[1757213209841,1e-08,202.38,202.37,0.83]
[1757213210050,1e-08,202.38,202.37,4.52179632]
[1757213210448,1e-08,202.38,202.37,9.04359264]
[1757213212669,3.95625951,202.38,202.37,9.04359264]
[1757213215269,1e-08,202.38,202.37,9.04359264]
[1757213221884,3.95625951,202.38,202.37,3.81179632]
[1757213222274,8.89745923,202.38,202.37,3.81179632]
[1757213224161,8.89745923,202.38,202.37,4.52179632]
[1757213224557,8.89745923,202.38,202.37,3.81179632]
[1757213225058,22.49305324,202.38,202.37,3.81179632]
[1757213225261,60.21305324,202.38,202.37,3.81179632]
[1757213225464,60.61305324,202.38,202.37,0.12]
[1757213226559,60.21305324,202.38,202.37,0.12]
[1757213230760,67.67625951,202.38,202.37,0.83]
[1757213230960,63.72000001,202.38,202.37,0.83]
[1757213231187,67.67625951,202.38,202.37,0.83]
[1757213234374,67.67625951,202.38,202.37,4.52620642]
[1757213237593,1e-08,202.38,202.37,4.52620642]
[1757213237894,1e-08,202.38,202.37,17.96811488]
[1757213246795,1e-08,202.38,202.37,22.90955876]
[1757213250893,1e-08,202.38,202.37,17.96811488]
[1757213254710,1e-08,202.38,202.37,17.96718297]
[1757213256885,1e-08,202.38,202.37,22.90862685]
[1757213265010,1e-08,202.38,202.37,17.96718297]
[1757213265513,1e-08,202.38,202.37,17.25718297]
[1757213265514,0.40000001,202.38,202.37,17.25718297]
[1757213265697,0.40000001,202.38,202.37,6.67359033]
[1757213266013,0.40000001,202.38,202.37,10.62984983]
[1757213266225,4.35625951,202.38,202.37,6.67359033]
[1757213267313,3.95625951,202.38,202.37,6.67359033]
[1757213268632,1e-08,202.38,202.37,6.67359033]
[1757213268918,3.95625951,202.38,202.37,6.67359033]
[1757213270095,1e-08,202.38,202.37,6.67359033]
[1757213270416,1e-08,202.38,202.37,7.39359033]
[1757213270794,1e-08,202.38,202.37,12.73443475]
[1757213271920,1e-08,202.38,202.37,7.39359033]
[1757213274320,1e-08,202.38,202.37,12.33503421]
[1757213274693,1e-08,202.38,202.37,14.31273563]
[1757213284506,0.03,202.39,202.37,14.31273563]
[1757213284719,0.03,202.39,202.38,12.21479005]
[1757213285106,0.03,202.39,202.38,27.0453509]
[1757213285610,0.03,202.39,202.38,21.38415118]
[1757213287317,0.03,202.39,202.38,6.55359033]
[1757213288228,0.03,202.39,202.38,9.11525186]
[1757213288417,0.03,202.39,202.38,6.55359033]
[1757213288822,0.03,202.39,202.38,9.11525186]
[1757213291907,0.03,202.39,202.38,9.83525186]
[1757213292213,0.03,202.39,202.38,14.77645158]
[1757213299429,0.03,202.39,202.38,15.27057155]
[1757213299608,0.00422291,202.39,202.38,52.97057155]
[1757213300021,0.03,202.41,202.38,52.97057155]
[1757213300231,0.03,202.41,202.39,33.27359033]
[1757213300446,0.03,202.41,202.4,7.04766147]
[1757213300634,0.03,202.41,202.4,7.76766147]
[1757213300821,0.03,202.41,202.4,9.74448324]
[1757213301739,0.03,202.41,202.4,14.6851947]
[1757213306160,0.03,202.43,202.42,26.0]
[1757213306353,0.03,202.43,202.42,70.25359033]
[1757213306536,0.03,202.43,202.42,70.97359033]
[1757213307244,0.03,202.43,202.42,72.95021672]
[1757213307444,0.03,202.43,202.42,77.89044001]
[1757213309151,0.03,202.43,202.42,74.19423359]
[1757213309332,0.03,202.43,202.42,77.87592155]
[1757213310338,0.2,202.49,202.42,90.22647979]
[1757213310553,0.2,202.49,202.43,7.75306979]
[1757213310758,0.2,202.49,202.44,44.23907187]
[1757213311048,0.2,202.49,202.45,6.53907187]
[1757213311257,0.2,202.49,202.46,44.21907187]
[1757213311463,0.2,202.49,202.48,4.93875938]
[1757213311630,0.2,202.49,202.48,46.30044734]
[1757213311826,0.2,202.49,202.48,48.27697607]
[1757213320557,0.2,202.49,202.48,44.59528811]
[1757213320755,0.2,202.49,202.48,48.27527147]
[1757213322268,0.2,202.49,202.48,48.99527147]
[1757213322455,0.2,202.49,202.48,51.84044047]
[1757213322849,0.2,202.49,202.48,51.12044047]
[1757213323056,0.2,202.49,202.48,51.84044047]
[1757213328060,0.2,202.49,202.48,51.84080084]
[1757213338988,0.2,202.49,202.48,14.16080084]
[1757213339160,0.2,202.49,202.48,51.84080084]
[1757213339484,0.6,202.49,202.48,51.12080084]
[1757213339784,0.2,202.49,202.48,51.12080084]
[1757213343702,0.2,202.49,202.48,51.80080084]
[1757213344470,0.2,202.49,202.48,14.12080084]
[1757213344670,0.2,202.49,202.48,51.80080084]
[1757213347686,0.2,202.49,202.48,14.12080084]
[1757213347884,0.2,202.49,202.48,51.80080084]
[1757213352075,0.2,202.49,202.48,48.10045711]
[1757213352281,0.2,202.49,202.48,14.13277092]
[1757213352465,0.2,202.49,202.48,51.79277092]
[1757213352792,0.2,202.49,202.48,14.13277092]
[1757213352977,0.2,202.49,202.48,51.79277092]
[1757213355995,0.2,202.49,202.48,51.11277092]
[1757213356496,0.2,202.49,202.48,51.79277092]
[1757213357187,0.2,202.49,202.48,51.80495017]
[1757213357388,0.2,202.49,202.48,14.14495017]
[1757213357594,0.2,202.49,202.48,51.80495017]
[1757213359386,0.2,202.49,202.48,14.14495017]
[1757213359588,0.2,202.49,202.48,51.80495017]
[1757213370208,0.2,202.49,202.48,65.40054418]
[1757213370390,0.2,202.49,202.48,65.4058347]
[1757213372398,0.2,202.49,202.48,51.81024069]
[1757213372596,0.2,202.49,202.48,51.13024069]
[1757213374099,0.2,202.49,202.48,13.47024069]
[1757213374303,0.2,202.49,202.48,51.13024069]
[1757213375215,0.2,202.49,202.48,51.84024069]
[1757213391143,0.0283855,202.49,202.48,65.4358347]
[1757213392210,0.0283855,202.49,202.48,65.43971723]
[1757213401260,0.00403544,202.49,202.48,65.43971723]
[1757213405658,0.00403544,202.49,202.48,27.06971723]
[1757213405860,0.40403544,202.49,202.48,8.53536384]
[1757213406166,2.93153152,202.49,202.48,8.65536384]
[1757213406656,0.40403544,202.49,202.48,8.65536384]
[1757213406858,0.40403544,202.49,202.48,46.31536384]
[1757213407556,0.40403544,202.49,202.48,8.65536384]
[1757213407557,2.93153152,202.49,202.48,8.65536384]
[1757213407754,7.870047,202.49,202.48,8.65536384]
[1757213408153,7.870047,202.49,202.48,3.82148686]
[1757213409063,21.46564101,202.49,202.48,3.82148686]
[1757213409254,21.46564101,202.49,202.48,1e-08]
[1757213409255,29.33568801,202.49,202.48,1e-08]
[1757213410548,29.33568801,202.49,202.45,0.12]
[1757213410549,161.63568801,202.49,202.45,0.12]
[1757213410750,42.12309009,202.46,202.45,1e-08]
[1757213410954,42.12309009,202.46,202.43,0.12]
[1757213411157,2.52749608,202.44,202.43,0.12]
[1757213411665,33.86723131,202.44,202.43,0.12]
[1757213411868,31.33973523,202.44,202.43,0.12]
[1757213412038,47.46282532,202.44,202.43,0.12]
[1757213412467,132.30403544,202.49,202.43,0.12]
[1757213412655,0.4,202.46,202.43,0.12]
[1757213413163,0.4,202.46,202.43,5.05875938]
[1757213413369,0.40403544,202.49,202.44,3.53523289]
[1757213413665,2.52749608,202.45,202.43,5.05875938]
[1757213413858,0.4,202.44,202.43,0.12]
[1757213414548,2.52749608,202.45,202.43,0.12]
[1757213414749,2.92749608,202.45,202.43,0.12]
[1757213415747,2.52749608,202.46,202.43,0.12]
[1757213416344,2.92749608,202.46,202.43,2.96211339]
[1757213416540,4.93903271,202.48,202.43,3.65211339]
[1757213416754,2.93153152,202.49,202.44,0.69]
[1757213417765,2.92749608,202.48,202.43,0.12]
[1757213417968,2.92749608,202.48,202.45,9.99867535]
[1757213420951,0.4,202.48,202.45,9.99867535]
[1757213421157,2.92749608,202.48,202.45,9.99867535]
[1757213421467,0.4,202.47,202.45,9.99867535]
[1757213421653,2.52749608,202.48,202.45,9.99867535]
[1757213422673,0.00403544,202.49,202.45,9.99867535]
[1757213422852,2.52749608,202.48,202.45,9.99867535]
[1757213423172,2.52749608,202.48,202.45,10.71867535]
[1757213423674,2.53153152,202.49,202.45,10.71867535]
[1757213424264,2.53153152,202.49,202.45,10.83867535]
[1757213425558,2.53153152,202.49,202.46,0.72]
[1757213427560,2.53153152,202.49,202.47,3.68006384]
[1757213427761,2.53153152,202.49,202.46,0.72]
[1757213427982,2.53153152,202.49,202.47,3.68006384]
[1757213428280,2.53153152,202.49,202.46,0.72]
[1757213428485,2.53153152,202.49,202.47,3.68020326]
[1757213428657,2.53153152,202.49,202.46,0.72]
[1757213428856,2.53153152,202.49,202.47,3.68020326]
[1757213429158,2.53153152,202.49,202.45,19.88633733]
[1757213429357,2.53153152,202.49,202.46,3.68009366]
[1757213429581,2.53153152,202.49,202.47,3.68009366]
[1757213429786,2.53153152,202.49,202.45,20.60633733]
[1757213430087,2.53153152,202.49,202.46,4.4003579]
[1757213430259,2.53153152,202.49,202.47,3.6803579]
[1757213430460,2.53153152,202.49,202.46,0.72]
[1757213430778,2.53153152,202.49,202.47,0.72]
[1757213431167,2.53153152,202.49,202.46,5.05944134]
[1757213431480,2.53153152,202.49,202.46,5.77944134]
[1757213432887,2.53153152,202.49,202.46,5.05944134]
[1757213433064,2.52749608,202.48,202.46,5.05944134]
[1757213435083,2.53153152,202.49,202.46,5.77944134]
[1757213436379,2.53153152,202.49,202.47,3.6829545]
[1757213436582,2.53153152,202.49,202.46,5.77944134]
[1757213436881,2.53153152,202.49,202.47,3.68295381]
[1757213437079,0.00403544,202.49,202.46,5.77944134]
[1757213437384,0.00403544,202.49,202.47,3.68295341]
[1757213437584,0.00403544,202.49,202.46,5.77944134]
[1757213437891,0.00403544,202.49,202.47,4.40343943]
[1757213438077,0.00403544,202.49,202.47,0.72]
[1757213438382,0.00403544,202.49,202.45,5.77943017]
[1757213438687,0.00403544,202.49,202.46,4.40396742]
[1757213438891,0.00403544,202.49,202.47,3.68396742]
[1757213439079,0.00403544,202.49,202.47,0.72]
[1757213439283,0.00403544,202.49,202.45,5.05943017]
[1757213439469,0.00403544,202.49,202.46,4.40453812]
[1757213439663,0.00403544,202.49,202.47,3.68453812]
[1757213439865,0.00403544,202.49,202.47,0.72]
[1757213440490,0.00403544,202.49,202.48,4.40467831]
[1757213444482,0.00403544,202.49,202.48,3.68467831]
[1757213444686,2.53153152,202.49,202.48,3.68467831]
[1757213445495,2.53153152,202.49,202.48,3.68825613]
[1757213447090,0.00403544,202.49,202.48,3.68825613]
[1757213450304,0.00403544,202.49,202.48,6.53955083]
[1757213451284,0.00403544,202.49,202.48,7.24955083]
[1757213451484,0.00403544,202.49,202.48,6.53955083]
[1757213455798,0.00403544,202.49,202.48,6.54549922]
[1757213459092,0.00403544,202.49,202.48,7.25549922]
[1757213462893,0.00403544,202.49,202.48,12.1942586]
[1757213465614,0.00403544,202.49,202.48,6.54549922]
[1757213465810,3.95665197,202.49,202.48,6.54549922]
[1757213467111,8.89516745,202.49,202.48,6.54549922]
[1757213469510,22.49076146,202.49,202.48,6.54549922]
[1757213472389,60.23076146,202.49,202.48,3.69420452]
[1757213472708,56.27814493,202.49,202.48,3.69420452]
[1757213473007,60.23076146,202.49,202.48,3.69420452]
[1757213477510,60.23076146,202.49,202.48,3.69420452]
[1757213480805,60.63076146,202.49,202.48,3.69420452]
[1757213482891,60.23076146,202.49,202.48,3.69420452]
[1757213484430,51.31962945,202.49,202.48,4.40420452]
[1757213484613,55.27224598,202.49,202.48,4.40420452]
[1757213484812,51.31962945,202.49,202.48,4.40420452]
[1757213488106,51.31962945,202.49,202.48,4.40858485]
[1757213488928,13.59962945,202.49,202.48,4.40858485]
[1757213489111,51.31962945,202.49,202.48,7.26638011]
[1757213490030,55.27224598,202.49,202.48,6.55638011]
[1757213490233,60.21076146,202.49,202.48,3.69858485]
[1757213492031,56.25814493,202.49,202.48,3.69858485]
[1757213492331,60.21076146,202.49,202.48,3.69858485]
[1757213494727,56.25814493,202.49,202.48,3.69858485]
[1757213494929,60.21076146,202.49,202.48,3.69858485]
[1757213497929,60.21076146,202.49,202.48,4.40858485]
[1757213500332,60.21076146,202.49,202.48,7.26690921]
[1757213500534,60.21076146,202.49,202.48,6.55690921]
[1757213502434,56.25814493,202.49,202.48,6.55690921]
[1757213502617,60.19076146,202.49,202.48,6.55690921]
[1757213503335,22.49076146,202.49,202.48,6.55690921]
[1757213503725,60.19076146,202.49,202.48,6.55690921]
[1757213504142,56.23814493,202.49,202.48,6.55690921]
[1757213505542,56.23814493,202.49,202.48,7.26690921]
[1757213505747,51.29962945,202.49,202.48,7.26690921]
[1757213507742,0.00403544,202.49,202.48,7.26690921]
[1757213507948,0.03,202.51,202.48,12.20566859]
[1757213508147,0.03,202.51,202.49,7.26690921]
[1757213508447,0.03,202.51,202.5,6.55690921]
[1757213508633,0.03,202.51,202.5,9.24334027]
[1757213513128,0.03,202.51,202.5,14.18161187]
[1757213513351,0.03,202.51,202.5,11.32328751]
[1757213513550,0.03,202.51,202.5,14.17471076]
[1757213514454,0.03,202.51,202.5,9.23643916]
[1757213515954,0.03,202.51,202.5,8.52643916]
[1757213516254,0.03,202.51,202.5,9.20643916]
[1757213516447,0.03,202.51,202.5,8.52643916]
[1757213516849,0.03,202.51,202.5,9.20643916]
[1757213519261,0.03,202.51,202.5,14.14471076]
[1757213530039,0.03,202.51,202.5,51.86471076]
[1757213537768,0.03,202.51,202.5,48.16612591]
[1757213537955,0.2,202.52,202.5,48.16612591]
[1757213537956,1e-08,202.52,202.51,13.59559401]
[1757213538272,0.03,202.56,202.54,26.0]
[1757213538574,0.03,202.56,202.55,70.29157657]
[1757213538958,0.03,202.56,202.55,70.97157657]
[1757213539161,0.03,202.56,202.55,75.90862914]
[1757213539360,0.03,202.56,202.55,90.72380976]
[1757213541574,0.03,202.56,202.55,87.87238651]
[1757213541753,0.03,202.56,202.55,90.70506285]
[1757213544071,0.03,202.56,202.55,95.70363991]
[1757213546082,0.03,202.56,202.55,94.98363991]
[1757213546657,0.03,202.56,202.55,95.67363991]
[1757213547357,0.03,202.56,202.55,109.26923392]
[1757213548683,0.03,202.56,202.55,109.25246588]
[1757213551180,0.61,202.64,202.55,109.25246588]
[1757213551181,0.2,202.64,202.59,26.0]
[1757213551399,0.2,202.64,202.55,175.92036021]
[1757213551400,0.2,202.64,202.6,44.35606162]
[1757213551564,0.2,202.64,202.61,6.49606162]
[1757213551878,0.2,202.64,202.62,44.35606162]
[1757213552091,0.2,202.64,202.63,6.49606162]
[1757213552575,0.2,202.64,202.63,21.30685375]
[1757213554475,0.2,202.64,202.63,26.24195714]
[1757213556375,0.2,202.64,202.63,26.93195714]
[1757213556576,0.2,202.64,202.63,59.16685375]
[1757213556884,0.61,202.64,202.63,56.33417741]
[1757213558082,0.61,202.64,202.63,41.52338528]
[1757213558284,0.61,202.64,202.63,37.86]
[1757213558475,0.61,202.64,202.63,41.52247544]
[1757213560288,0.61,202.64,202.63,37.86]
[1757213560490,0.61,202.64,202.63,41.52273638]
[1757213561187,0.61,202.64,202.63,37.86]
[1757213563590,0.2,202.64,202.63,37.86]
[1757213563789,0.2,202.64,202.61,12.39763458]
[1757213563989,0.41,202.63,202.61,7.46225004]
[1757213564293,0.41,202.62,202.59,37.88]
[1757213564473,0.41,202.61,202.59,37.88]
[1757213565276,0.41,202.63,202.59,37.88]
[1757213565482,7.87343745,202.63,202.56,0.81]
[1757213565684,0.41,202.62,202.57,41.54640046]
[1757213565896,0.41,202.62,202.58,3.66640046]
[1757213566092,0.41,202.61,202.58,3.66640046]
[1757213568080,0.41,202.61,202.57,42.81656454]
[1757213568293,0.2,202.64,202.58,7.19665208]
[1757213568473,0.2,202.64,202.59,44.38665208]
[1757213568790,0.2,202.64,202.6,6.50665208]
[1757213568975,0.2,202.64,202.61,44.46665208]
[1757213569177,0.2,202.64,202.62,3.66981113]
[1757213569374,0.2,202.64,202.63,37.96]
[1757213569573,0.2,202.64,202.63,38.63]
[1757213570086,0.2,202.64,202.63,42.29931302]
[1757213570291,0.2,202.64,202.63,38.63]
[1757213570974,0.2,202.64,202.63,40.60486978]
[1757213571297,0.2,202.64,202.63,44.27527723]
[1757213571498,0.2,202.64,202.63,41.63040745]
[1757213571883,0.2,202.64,202.63,42.30040745]
[1757213573395,0.2,202.64,202.63,41.63040745]
[1757213573772,0.2,202.64,202.63,42.30040745]
[1757213575007,0.2,202.64,202.63,3.67040745]
[1757213575293,3.13832611,202.64,202.61,37.94]
[1757213575587,0.41,202.63,202.61,37.94]
[1757213575796,2.72832611,202.64,202.61,37.94]
[1757213576192,8.07318595,202.64,202.61,37.94]
[1757213576898,5.34515444,202.63,202.59,37.94]
[1757213577100,5.34515444,202.63,202.6,3.67672363]
[1757213577293,5.34515444,202.63,202.59,37.94]
[1757213577595,4.93515444,202.63,202.6,3.67755768]
[1757213577784,4.93515444,202.63,202.59,38.61]
[1757213577989,4.93515444,202.63,202.6,3.677463]
[1757213578186,4.93515444,202.63,202.59,38.61]
[1757213578380,0.2,202.64,202.6,12.12852676]
[1757213578583,0.2,202.64,202.61,45.13279365]
[1757213578782,0.2,202.64,202.62,6.52279365]
[1757213578982,0.2,202.64,202.63,41.67835395]
[1757213579197,0.2,202.64,202.63,42.34835395]
[1757213580187,0.2,202.64,202.63,3.67835395]
[1757213580387,0.2,202.64,202.63,6.5234288]
[1757213580582,0.2,202.64,202.63,3.67835395]
[1757213586209,0.61,202.64,202.63,3.67835395]
[1757213586412,4.5575418,202.64,202.59,6.04441225]
[1757213586611,4.5575418,202.64,202.6,7.20120192]
[1757213586910,0.2,202.64,202.61,7.20120192]
[1757213587107,0.2,202.64,202.62,4.35304286]
[1757213587304,0.2,202.64,202.62,0.67]
[1757213588212,0.2,202.64,202.63,7.20004076]
[1757213598423,0.2,202.64,202.63,50.09514415]
[1757213598606,0.03,202.66,202.63,50.09514415]
[1757213598801,0.03,202.66,202.64,7.20004076]
[1757213599020,0.03,202.66,202.65,6.53004076]
[1757213599213,0.03,202.66,202.65,9.21471555]
[1757213600521,0.03,202.66,202.65,14.14933188]
[1757213618026,0.03,202.66,202.65,52.08933188]
[1757213620152,0.03,202.66,202.65,52.07292314]
[1757213625055,0.03,202.68,202.67,26.0]
[1757213625264,0.03,202.68,202.67,70.41363202]
[1757213625553,0.03,202.68,202.67,71.12363202]
[1757213625952,0.03,202.68,202.67,73.09781952]
[1757213626339,0.03,202.69,202.67,78.03194889]
[1757213626538,0.03,202.69,202.68,7.22363202]
[1757213627044,0.03,202.69,202.68,9.19781952]
[1757213627358,0.03,202.69,202.68,9.19771908]
[1757213628463,0.03,202.69,202.68,14.131605]
[1757213628641,0.61,202.79,202.72,26.0]
[1757213628845,0.61,202.78,202.73,45.10353158]
[1757213629045,0.61,202.78,202.74,6.51353158]
[1757213629358,0.61,202.78,202.75,6.51353158]
[1757213629560,0.61,202.78,202.74,13.79559401]
[1757213629561,0.61,202.77,202.74,13.79559401]
[1757213629768,0.61,202.76,202.74,37.94]
[1757213629953,0.61,202.75,202.74,37.94]
[1757213630139,0.61,202.75,202.72,26.0]
[1757213630344,0.61,202.74,202.73,41.60391896]
[1757213632254,0.61,202.74,202.73,3.66391896]
[1757213632562,0.61,202.74,202.73,38.0]
[1757213632744,0.61,202.74,202.71,51.59559401]
[1757213632945,0.61,202.73,202.72,3.66576666]
[1757213635155,0.61,202.73,202.72,8.59772093]
[1757213638043,0.61,202.73,202.72,3.66576666]
[1757213638238,0.61,202.73,202.72,3.67107697]
[1757213639051,9.49021086,202.73,202.68,0.12]
[1757213639263,3.9475418,202.71,202.69,20.14533406]
[1757213639559,4.93266906,202.73,202.69,20.14533406]
[1757213639560,0.61,202.73,202.7,6.51974005]
[1757213639763,0.61,202.73,202.71,3.67315519]
[1757213639966,0.61,202.73,202.72,3.67315519]
[1757213640856,3.13371035,202.76,202.72,6.5205153]
[1757213641174,0.61,202.75,202.73,3.67315519]
[1757213641479,0.61,202.75,202.71,38.69]
[1757213641480,0.61,202.75,202.74,3.67315519]
[1757213641645,2.52371035,202.76,202.74,3.67315519]
[1757213641846,2.52371035,202.76,202.71,38.0]
[1757213642050,2.52371035,202.76,202.72,6.52290912]
[1757213642267,3.13371035,202.75,202.73,3.67440861]
[1757213642443,4.931958,202.76,202.74,3.67440861]
[1757213642642,18.52755201,202.76,202.7,52.82786791]
[1757213642853,2.52371035,202.73,202.71,6.52774885]
[1757213643052,0.61,202.75,202.72,3.67733]
[1757213643263,0.61,202.74,202.73,3.67887595]
[1757213643459,3.13371035,202.74,202.73,3.67887595]
[1757213649251,8.06613611,202.74,202.73,3.67887595]
[1757213650852,3.13371035,202.74,202.73,3.67887595]
[1757213651457,2.52371035,202.74,202.73,3.67930304]
[1757213652656,2.52371035,202.74,202.73,6.53072219]
[1757213653049,2.52371035,202.74,202.73,3.67930304]
[1757213653775,0.67,202.75,202.73,3.67930304]
[1757213654074,0.67,202.75,202.74,3.67930304]
[1757213654276,0.06,202.75,202.74,3.67930304]
[1757213655157,2.58371035,202.75,202.74,3.67930304]
[1757213655877,3.19371035,202.75,202.74,3.67930304]
[1757213656501,2.58371035,202.75,202.74,3.67930304]
[1757213658677,2.58371035,202.75,202.74,3.67827693]
[1757213658997,0.06,202.75,202.74,12.15338755]
[1757213659485,0.06,202.75,202.74,15.83166448]
[1757213660385,0.06,202.75,202.74,10.89923872]
[1757213661294,0.06,202.75,202.74,7.19096179]
[1757213661591,0.06,202.75,202.74,12.15217564]
[1757213665984,0.06,202.75,202.74,12.15085063]
[1757213667371,0.06,202.75,202.74,7.18963678]
[1757213669288,0.06,202.75,202.74,6.52963678]
[1757213669470,0.06,202.75,202.74,3.67695192]
[1757213672273,0.06,202.75,202.74,4.33695192]
[1757213672469,0.06,202.75,202.74,7.18909893]
[1757213678578,0.06,202.75,202.74,21.99550517]
[1757213680698,0.06,202.75,202.74,26.92793093]
[1757213683487,0.00829143,202.75,202.74,26.92793093]
[1757213684101,0.00829143,202.75,202.74,26.91942259]
[1757213687291,0.00829143,202.75,202.74,65.19942259]
[1757213687698,0.00829143,202.75,202.74,65.19182974]
[1757213688594,0.06,202.78,202.77,26.0]
[1757213688798,0.06,202.78,202.77,70.79299774]
[1757213689009,0.06,202.78,202.77,71.45299774]
[1757213689203,0.61,202.9,202.82,26.0]
[1757213689383,0.61,202.9,202.83,45.54299774]
[1757213689574,0.61,202.9,202.84,6.51299774]
[1757213689780,0.61,202.9,202.85,44.83299774]
[1757213690007,0.61,202.9,202.86,3.66085073]
[1757213690207,0.61,202.9,202.82,26.0]
[1757213690208,0.61,202.9,202.87,41.96085073]
[1757213690377,0.61,202.93,202.87,39.01]
[1757213690582,0.61,202.93,202.88,4.92902208]
[1757213690793,0.61,202.92,202.89,38.3]
[1757213691394,4.92740584,202.95,202.9,4.92740584]
[1757213691581,0.61,202.91,202.9,4.92740584]
[1757213694588,4.92780761,202.93,202.9,4.92740584]